fUSD/lending_fUSD_20250623
["ID","MTS","AMOUNT","RATE_DAILY","PERIOD"]
[367194696,1750698184481,-598.13,0.00022994,2]
[367194697,1750698184506,-1348.46,0.00022994,2]
[367194698,1750698184539,-10585.19,0.00022994,2]
[367194699,1750698184563,-2498.35,0.00022994,2]
[367194700,1750698184587,-4934.18,0.00022994,2]
[367194701,1750698184612,-1478.98,0.00022994,2]
[367194702,1750698184636,-1545.53,0.00022994,2]
[367194703,1750698184660,-3402.27,0.00022994,2]
[367194704,1750698184684,-2206.84,0.00022994,2]
[367194705,1750698184712,-498.74,0.00022994,2]
[367194706,1750698184737,-1421.05,0.00022994,2]
[367194707,1750698184763,-1038.2,0.00022994,2]
[367194708,1750698184788,-1066.02,0.00022994,2]
[367194709,1750698184812,-501.61,0.00022994,2]
[367194710,1750698184836,-3323.46,0.00022994,2]
[367194711,1750698184862,-2316.9,0.00022994,2]
[367194712,1750698184887,-3356.25,0.00022994,2]
[367194713,1750698184911,-1391.25,0.00022994,2]
[367194714,1750698184935,-2168.14,0.00022994,2]
[367194715,1750698184963,-1364.03,0.00022994,2]
[367194716,1750698184986,-610.91,0.00022994,2]
[367194717,1750698185010,-2413.66,0.00022994,2]
[367194718,1750698185038,-1297.28,0.00022994,2]
[367194719,1750698185063,-1952.44,0.00022994,2]
[367194720,1750698185088,-1266.01,0.00022994,2]
[367194721,1750698185116,-241.99585714,0.00022994,2]
[367194722,1750698185139,-420.1767152,0.00022994,2]
[367194723,1750698185162,-500.0,0.00022994,2]
[367194724,1750698185185,-500.0,0.00022994,2]
[367194725,1750698185211,-4624.48,0.00022994,2]
[367194726,1750698185234,-500.0,0.00022994,2]
[367194727,1750698185258,-208.69928896,0.00022994,2]
[367194728,1750698185280,-1102.97,0.00022994,2]
[367194729,1750698185302,-1078.74,0.00022994,2]
[367194730,1750698185326,-3558.76,0.00022994,2]
[367194731,1750698185354,-1337.15,0.00022994,2]
[367194732,1750698185378,-490.0,0.00022994,2]
[367194733,1750698185401,-490.0,0.00022994,2]
[367194734,1750698185424,-1152.29,0.00022994,2]
[367194735,1750698185451,-610.15,0.00022994,2]
[367194736,1750698185478,-1392.23,0.00022994,2]
[367194737,1750698185503,-817.67,0.00022994,2]
[367194738,1750698185530,-5227.05,0.00022994,2]
[367194739,1750698185554,-1830.42,0.00022994,2]
[367194740,1750698185580,-1020.57,0.00022994,2]
[367194741,1750698185605,-9332.79,0.00022994,2]
[367194742,1750698185628,-1515.67,0.00022994,2]
[367194743,1750698185651,-1966.02,0.00022994,2]
[367194744,1750698185674,-2180.33,0.00022994,2]
[367194745,1750698185703,-2161.79,0.00022994,2]
[367194746,1750698185727,-1460.07,0.00022994,2]
[367194747,1750698185750,-5195.42,0.00022994,2]
[367194748,1750698185773,-1305.84,0.00022994,2]
[367194749,1750698185796,-1565.82,0.00022994,2]
[367194750,1750698185818,-1637.95,0.00022994,2]
[367194751,1750698185840,-2555.36,0.00022994,2]
[367194752,1750698185863,-1552.04,0.00022994,2]
[367194753,1750698185885,-1482.91,0.00022994,2]
[367194754,1750698185908,-2237.92,0.00022994,2]
[367194755,1750698185932,-490.0,0.00022994,2]
[367194756,1750698185961,-4456.34,0.00022994,2]
[367194757,1750698185986,-3007.29,0.00022994,2]
[367194758,1750698186010,-1665.29,0.00022994,2]
[367194759,1750698186044,-2422.44,0.00022994,2]
[367194760,1750698186068,-1311.67,0.00022994,2]
[367194761,1750698186092,-1100.71,0.00022994,2]
[367194762,1750698186115,-1642.16,0.00022994,2]
[367194763,1750698186139,-1567.07,0.00022994,2]
[367194764,1750698186161,-490.0,0.00022994,2]
[367194765,1750698186183,-1679.82,0.00022994,2]
[367194766,1750698186210,-7749.06,0.00022994,2]
[367194767,1750698186234,-3407.51,0.00022994,2]
[367194768,1750698186256,-1787.29,0.00022994,2]
[367194769,1750698186279,-1714.92,0.00022994,2]
[367194770,1750698186301,-701.16,0.00022994,2]
[367194771,1750698186323,-1528.81,0.00022994,2]
[367194772,1750698186345,-490.0,0.00022994,2]
[367194773,1750698186371,-6601.17,0.00022994,2]
[367194774,1750698186395,-1353.02,0.00022994,2]
[367194775,1750698186418,-1397.05,0.00022994,2]
[367194776,1750698186441,-8748.58,0.00022994,2]
[367194777,1750698186467,-3066.96,0.00022994,2]
[367194778,1750698186491,-1316.57,0.00022994,2]
[367194779,1750698186516,-490.0,0.00022994,2]
[367194780,1750698186539,-3034.64,0.00022994,2]
[367194781,1750698186563,-3147.79,0.00022994,2]
[367194782,1750698186588,-2072.67,0.00022994,2]
[367194783,1750698186613,-490.0,0.00022995,2]
[367194784,1750698186637,-490.0,0.00022995,2]
[367194785,1750698186660,-490.0,0.00022995,2]
[367194786,1750698186684,-496.49,0.00022995,2]
[367194787,1750698186709,-716.72,0.00022995,2]
[367194788,1750698186733,-490.0,0.00022995,2]
[367194789,1750698186757,-490.0,0.00022995,2]
[367194790,1750698186780,-432.06613347,0.00022995,2]
[367194791,1750698186802,-458.320975,0.00022995,2]
[367194792,1750698186825,-490.0,0.00022995,2]
[367194793,1750698186849,-490.0,0.00022995,2]
[367194794,1750698186875,-490.0,0.00022995,2]
[367194795,1750698186897,-490.0,0.00022995,2]
[367194796,1750698186921,-490.0,0.00022995,2]
[367194797,1750698186947,-490.0,0.00022995,2]
[367194798,1750698187362,-1000.0,0.00022995,2]
[367194799,1750698187386,-622.02113166,0.00022995,2]
[367194800,1750698187410,-490.0,0.00022995,2]
[367194801,1750698187434,-790.24,0.00022995,2]
[367194802,1750698187459,-558.63687505,0.00022995,2]
[367194803,1750698187481,-490.0,0.00022995,2]
[367194804,1750698187504,-490.0,0.00022995,2]
[367194805,1750698187529,-490.0,0.00022995,2]
[367194806,1750698187551,-210.0,0.00022995,2]
[367194807,1750698187574,-490.0,0.00022995,2]
[367194808,1750698187597,-669.68,0.00022995,2]
[367194809,1750698187620,-490.0,0.00022995,2]
[367194810,1750698187642,-490.0,0.00022995,2]
[367194811,1750698187663,-490.0,0.00022995,2]
[367194812,1750698187686,-490.0,0.00022995,2]
[367194813,1750698187711,-502.32075781,0.00022995,2]
[367194814,1750698187733,-490.0,0.00022995,2]
[367194815,1750698187756,-490.0,0.00022995,2]
[367194816,1750698187778,-490.0,0.00022995,2]
[367194817,1750698187800,-490.0,0.00022995,2]
[367194818,1750698187824,-408.28544325,0.00022995,2]
[367194819,1750698187846,-490.0,0.00022995,2]
[367194820,1750698187867,-490.0,0.00022995,2]
[367194821,1750698187888,-490.0,0.00022995,2]
[367194822,1750698187909,-490.0,0.00022995,2]
[367194823,1750698187930,-490.0,0.00022995,2]
[367194824,1750698187953,-570.9,0.00022995,2]
[367194825,1750698187975,-458.29665892,0.00022995,2]
[367194826,1750698187996,-490.0,0.00022995,2]
[367194827,1750698188018,-490.0,0.00022995,2]
[367194828,1750698188039,-490.0,0.00022995,2]
[367194829,1750698188060,-490.0,0.00022995,2]
[367194830,1750698188080,-490.0,0.00022995,2]
[367194831,1750698188103,-490.0,0.00022995,2]
[367194832,1750698188124,-490.0,0.00022995,2]
[367194833,1750698188145,-490.0,0.00022995,2]
[367194834,1750698188166,-490.0,0.00022995,2]
[367194835,1750698188188,-490.0,0.00022995,2]
[367194836,1750698188212,-194.07353495,0.00022995,2]
[367194837,1750698188234,-767.15,0.00022995,2]
[367194838,1750698188255,-490.0,0.00022995,2]
[367194839,1750698188277,-490.0,0.00022995,2]
[367194840,1750698188298,-490.0,0.00022995,2]
[367194841,1750698188320,-490.0,0.00022995,2]
[367194842,1750698188341,-490.0,0.00022995,2]
[367194843,1750698188363,-490.0,0.00022995,2]
[367194844,1750698188385,-490.0,0.00022995,2]
[367194845,1750698188406,-490.0,0.00022995,2]
[367194846,1750698188427,-602.39,0.00022995,2]
[367194847,1750698188449,-490.0,0.00022995,2]
[367194848,1750698188470,-490.0,0.00022995,2]
[367194849,1750698188493,-490.0,0.00022995,2]
[367194850,1750698188516,-490.0,0.00022995,2]
[367194851,1750698188539,-667.43,0.00022995,2]
[367194852,1750698188561,-490.0,0.00022995,2]
[367194853,1750698188584,-490.0,0.00022995,2]
[367194854,1750698188607,-490.0,0.00022995,2]
[367194855,1750698188629,-715.41,0.00022995,2]
[367194856,1750698188652,-490.0,0.00022995,2]
[367194857,1750698188673,-353.9622449,0.00022995,2]
[367194858,1750698188695,-490.0,0.00022995,2]
[367194859,1750698188718,-598.49213273,0.00022995,2]
[367194860,1750698188740,-490.0,0.00022995,2]
[367194861,1750698188762,-490.0,0.00022995,2]
[367194862,1750698188784,-490.0,0.00022995,2]
[367194863,1750698188806,-1512.56,0.00022995,2]
[367194864,1750698188828,-490.0,0.00022995,2]
[367194865,1750698188850,-490.0,0.00022995,2]
[367194866,1750698188873,-490.0,0.00022995,2]
[367194867,1750698188894,-490.0,0.00022995,2]
[367194868,1750698188915,-490.0,0.00022995,2]
[367194869,1750698188937,-490.0,0.00022995,2]
[367194870,1750698188959,-490.0,0.00022995,2]
[367194871,1750698188981,-490.0,0.00022995,2]
[367194872,1750698189002,-490.0,0.00022995,2]
[367194873,1750698189025,-490.0,0.00022995,2]
[367194874,1750698189049,-1020.69,0.00022995,2]
[367194875,1750698189072,-465.89885496,0.00022995,2]
[367194876,1750698189093,-490.0,0.00022995,2]
[367194877,1750698189115,-490.0,0.00022995,2]
[367194878,1750698189136,-490.0,0.00022995,2]
[367194879,1750698189158,-240.16821507,0.00022995,2]
[367194880,1750698189181,-233.37205505,0.00022995,2]
[367194881,1750698189205,-490.0,0.00022995,2]
[367194882,1750698189226,-490.0,0.00022995,2]
[367194883,1750698189247,-889.02,0.00022995,2]
[367194884,1750698189268,-490.0,0.00022995,2]
[367194885,1750698189289,-1000.0,0.00022995,2]
[367194886,1750698189311,-490.0,0.00022995,2]
[367194887,1750698189334,-490.0,0.00022995,2]
[367194888,1750698189357,-490.0,0.00022995,2]
[367194889,1750698189379,-490.0,0.00022995,2]
[367194890,1750698189401,-490.0,0.00022995,2]
[367194891,1750698189422,-724.18,0.00022995,2]
[367194892,1750698189443,-490.0,0.00022995,2]
[367194893,1750698189466,-490.0,0.00022995,2]
[367194894,1750698189488,-357.39251913,0.00022995,2]
[367194895,1750698189511,-490.0,0.00022995,2]
[367194896,1750698189537,-525.26136089,0.00022995,2]
[367194897,1750698189560,-490.0,0.00022995,2]
[367194898,1750698189582,-490.0,0.00022995,2]
[367194899,1750698189606,-490.0,0.00022995,2]
[367194900,1750698189629,-490.0,0.00022995,2]
[367194901,1750698189650,-589.95537576,0.00022995,2]
[367194902,1750698189672,-490.0,0.00022995,2]
[367194903,1750698189695,-622.56,0.00022995,2]
[367194904,1750698189719,-504.46858086,0.00022995,2]
[367194905,1750698189742,-631.64,0.00022995,2]
[367194906,1750698189764,-688.68,0.00022995,2]
[367194907,1750698189786,-494.12402606,0.00022995,2]
[367194908,1750698189809,-626.83,0.00022995,2]
[367194909,1750698189834,-490.0,0.00022995,2]
[367194910,1750698189856,-490.0,0.00022995,2]
[367194911,1750698189878,-948.79,0.00022995,2]
[367194912,1750698189900,-490.0,0.00022995,2]
[367194913,1750698189920,-490.0,0.00022995,2]
[367194914,1750698189942,-507.1,0.00022995,2]
[367194915,1750698189965,-569.53597791,0.00022995,2]
[367194916,1750698189986,-490.0,0.00022995,2]
[367194917,1750698190006,-490.0,0.00022995,2]
[367194918,1750698190027,-299.66405683,0.00022995,2]
[367194919,1750698190049,-490.0,0.00022995,2]
[367194920,1750698190071,-490.0,0.00022995,2]
[367194921,1750698190093,-490.0,0.00022995,2]
[367194922,1750698190114,-490.0,0.00022995,2]
[367194923,1750698190137,-490.0,0.00022995,2]
[367194924,1750698190160,-490.0,0.00022995,2]
[367194925,1750698190182,-500.0,0.00022995,2]
[367194926,1750698190205,-338.00187733,0.00022995,2]
[367194927,1750698190226,-490.0,0.00022995,2]
[367194928,1750698190248,-490.0,0.00022995,2]
[367194929,1750698190268,-490.0,0.00022995,2]
[367194930,1750698190290,-490.0,0.00022995,2]
[367194931,1750698190312,-490.0,0.00022995,2]
[367194932,1750698190332,-490.0,0.00022995,2]
[367194933,1750698190353,-490.0,0.00022995,2]
[367194934,1750698190374,-490.0,0.00022995,2]
[367194935,1750698190395,-490.0,0.00022995,2]
[367194936,1750698190415,-490.0,0.00022995,2]
[367194937,1750698190436,-490.0,0.00022995,2]
[367194938,1750698190458,-413.528298,0.00022995,2]
[367194939,1750698190480,-490.0,0.00022995,2]
[367194940,1750698190501,-612.03,0.00022995,2]
[367194941,1750698190526,-1985.06,0.00022995,2]
[367194942,1750698190548,-1247.19,0.00022995,2]
[367194943,1750698190569,-420.0,0.00022995,2]
[367194944,1750698190591,-490.0,0.00022995,2]
[367194945,1750698190613,-490.0,0.00022995,2]
[367194946,1750698190636,-490.0,0.00022995,2]
[367194947,1750698190659,-490.0,0.00022995,2]
[367194948,1750698190680,-490.0,0.00022995,2]
[367194949,1750698190702,-490.0,0.00022995,2]
[367194950,1750698190725,-390.68312837,0.00022995,2]
[367194951,1750698190746,-490.0,0.00022995,2]
[367194952,1750698190767,-490.0,0.00022995,2]
[367194953,1750698190789,-500.0,0.00022995,2]
[367194954,1750698190811,-490.0,0.00022995,2]
[367194955,1750698190832,-490.0,0.00022995,2]
[367194956,1750698190853,-490.0,0.00022995,2]
[367194957,1750698190874,-490.0,0.00022995,2]
[367194958,1750698190894,-490.0,0.00022995,2]
[367194959,1750698190915,-490.0,0.00022995,2]
[367194960,1750698190935,-1487.45,0.00022995,2]
[367194961,1750698190956,-490.0,0.00022995,2]
[367194962,1750698190978,-599.44,0.00022995,2]
[367194963,1750698190999,-490.0,0.00022995,2]
[367194964,1750698191021,-490.0,0.00022995,2]
[367194965,1750698191043,-490.0,0.00022995,2]
[367194966,1750698191064,-1746.49,0.00022995,2]
[367194967,1750698191085,-673.4,0.00022995,2]
[367194968,1750698191105,-490.0,0.00022995,2]
[367194969,1750698191125,-490.0,0.00022995,2]
[367194970,1750698191145,-490.0,0.00022995,2]
[367194971,1750698191166,-490.0,0.00022995,2]
[367194972,1750698191187,-490.0,0.00022995,2]
[367194973,1750698191210,-490.0,0.00022995,2]
[367194974,1750698191231,-500.25213793,0.00022995,2]
[367194975,1750698191253,-1680.13,0.00022995,2]
[367194976,1750698191274,-670.35,0.00022995,2]
[367194977,1750698191295,-492.96592692,0.00022995,2]
[367194978,1750698191316,-490.0,0.00022995,2]
[367194979,1750698191566,-490.0,0.00022995,2]
[367194980,1750698191589,-490.0,0.00022995,2]
[367194981,1750698191615,-490.0,0.00022995,2]
[367194982,1750698191640,-490.0,0.00022995,2]
[367194983,1750698191665,-1154.43,0.00022995,2]
[367194984,1750698191689,-490.0,0.00022995,2]
[367194985,1750698191715,-490.0,0.00022995,2]
[367194986,1750698191737,-490.0,0.00022995,2]
[367194987,1750698191761,-490.0,0.00022995,2]
[367194988,1750698191785,-490.0,0.00022995,2]
[367194989,1750698191809,-490.0,0.00022995,2]
[367194990,1750698191832,-494.90000905,0.00022995,2]
[367194991,1750698191855,-153.91105767,0.00022995,2]
[367194992,1750698191879,-490.0,0.00022995,2]
[367194993,1750698191902,-1224.16099511,0.00022995,2]
[367195000,1750698385012,242.58,0.00013699,2]
[367195009,1750698452965,-242.58,0.00020187,2]
[367195010,1750698452987,-150.0,0.00020934,2]
[367195011,1750698453007,-150.0,0.00020934,2]
[367195012,1750698453030,-150.0,0.00020934,2]
[367195013,1750698453053,-150.0,0.00020934,2]
[367195014,1750698453077,-150.0,0.00021372,2]
[367195015,1750698453098,-250.0,0.0002139,2]
[367195016,1750698453123,-150.0,0.00021467,2]
[367195017,1750698453148,-150.0,0.00021468,2]
[367195018,1750698453176,-150.0,0.00021479,2]
[367195019,1750698453201,-150.0,0.00021508,2]
[367195020,1750698453225,-150.0,0.0002163,2]
[367195021,1750698453249,-150.0,0.00021664,2]
[367195022,1750698453272,-150.0,0.00021675,2]
[367195023,1750698453295,-150.0,0.0002171,4]
[367195024,1750698453318,-150.0,0.00021721,2]
[367195025,1750698453342,-150.0,0.00021722,2]
[367195026,1750698453365,-150.0,0.00021744,2]
[367195027,1750698453389,-150.0,0.00021801,2]
[367195028,1750698453415,-150.0,0.00021858,2]
[367195029,1750698453438,-150.0,0.00021893,2]
[367195030,1750698453460,-150.0,0.00021895,2]
[367195031,1750698453484,-150.0,0.00021899,2]
[367195032,1750698453511,-150.0,0.00022008,2]
[367195033,1750698453536,-150.0,0.00022032,2]
[367195034,1750698453559,-150.0,0.00022072,2]
[367195035,1750698453582,-150.0,0.00022097,4]
[367195036,1750698453605,-1000.0,0.00022118,2]
[367195037,1750698453628,-300.0,0.00022118,2]
[367195038,1750698453652,-150.0,0.00022139,2]
[367195039,1750698453677,-150.0,0.00022173,2]
[367195040,1750698453698,-264.0,0.00022173,2]
[367195041,1750698453720,-150.0,0.00022206,2]
[367195042,1750698453743,-150.0,0.00022241,2]
[367195043,1750698453768,-150.0,0.00022246,2]
[367195044,1750698453791,-150.0,0.00022275,2]
[367195045,1750698453814,-150.0,0.00022309,2]
[367195046,1750698453840,-150.0,0.00022319,2]
[367195047,1750698453868,-150.0,0.00022407,2]
[367195048,1750698453892,-2266.0,0.00022411,2]
[367195049,1750698453917,-150.0,0.00022426,2]
[367195050,1750698453943,-150.0,0.0002243,2]
[367195051,1750698453966,-150.0,0.00022434,2]
[367195052,1750698453988,-150.0,0.00022438,2]
[367195053,1750698454011,-150.0,0.00022485,4]
[367195054,1750698454032,-150.0,0.00022492,2]
[367195055,1750698454056,-150.0,0.00022537,2]
[367195056,1750698454079,-300.0,0.000226,8]
[367195057,1750698454102,-600.0,0.000227,8]
[367195058,1750698454125,-150.0,0.00022748,2]
[367195059,1750698454148,-150.0,0.00022754,2]
[367195060,1750698454173,-150.0,0.00022755,2]
[367195061,1750698454199,-2802.87761853,0.0002277,2]
[367195062,1750698454223,-900.0,0.000228,8]
[367195063,1750698454246,-150.0,0.00022821,2]
[367195064,1750698454269,-150.0,0.00022867,2]
[367195065,1750698454294,-2556.4516395,0.00022894,2]
[367195066,1750698454318,-1200.0,0.000229,8]
[367195067,1750698454342,-2556.45163945,0.00022923,2]
[367195068,1750698454365,-2556.45163945,0.00022952,2]
[367195069,1750698454387,-151.0,0.00022972,2]
[367195070,1750698454410,-504.6283505,0.00022973,2]
[367195071,1750698454431,-501.17071209,0.00022973,2]
[367195072,1750698454451,-167.49726571,0.00022973,2]
[367195073,1750698454472,-187.93345863,0.00022973,2]
[367195074,1750698454492,-500.55082979,0.00022973,2]
[367195075,1750698454518,-500.0,0.00022973,2]
[367195076,1750698454542,-500.0,0.00022973,2]
[367195077,1750698454563,-499.60011461,0.00022973,2]
[367195078,1750698454585,-501.55560422,0.00022973,2]
[367195079,1750698454608,-500.0,0.00022973,2]
[367195080,1750698454629,-367.18699057,0.00022973,2]
[367195081,1750698454652,-500.0,0.00022973,2]
[367195082,1750698454680,-500.0,0.00022973,2]
[367195083,1750698454701,-502.43524979,0.00022973,2]
[367195084,1750698454723,-500.0,0.00022973,2]
[367195085,1750698454745,-500.0,0.00022973,2]
[367195086,1750698454765,-500.0,0.00022973,2]
[367195087,1750698454787,-180.43655616,0.00022973,2]
[367195088,1750698454807,-502.15378253,0.00022973,2]
[367195089,1750698454828,-500.0,0.00022973,2]
[367195090,1750698454860,-301.13860078,0.00022973,2]
[367195091,1750698454887,-500.0,0.00022973,2]
[367195092,1750698454915,-500.14759917,0.00022973,2]
[367195093,1750698454937,-299.851074,0.00022973,2]
[367195094,1750698454962,-2556.45163945,0.00022981,2]
[367195095,1750698454985,-6708.23475041,0.00022984,2]
[367195096,1750698455006,-10710.4610434,0.00022989,2]
[367195097,1750698455028,-24662.75384126,0.00022989,2]
[367195413,1750698586659,3117.01715302,0.00027397,120]
[367195415,1750698631927,-150.0,0.00020951,2]
[367195416,1750698631938,-150.0,0.0002098,2]
[367195417,1750698631947,-150.0,0.00021066,2]
[367195418,1750698631956,-150.0,0.00021082,2]
[367195419,1750698631966,-150.0,0.00021125,2]
[367195420,1750698631975,-150.0,0.00021247,2]
[367195421,1750698631985,-150.0,0.00021303,2]
[367195422,1750698631994,-150.0,0.00021383,2]
[367195423,1750698632004,-150.0,0.00021383,2]
[367195424,1750698632015,-150.0,0.00021614,2]
[367195425,1750698632025,-150.0,0.00021753,2]
[367195426,1750698632038,-150.0,0.00021757,2]
[367195427,1750698632048,-150.0,0.00021785,2]
[367195428,1750698632061,-150.0,0.00021865,2]
[367195429,1750698632072,-150.0,0.00022082,2]
[367195430,1750698632084,-150.0,0.00022184,2]
[367195431,1750698632095,-150.0,0.0002224,2]
[367195432,1750698632106,-203.0,0.00022261,2]
[367195433,1750698632117,-156.58739273,0.00022261,2]
[367195434,1750698632134,-46.41260727,0.00022261,2]
[367195435,1750698632145,-150.0,0.00022268,2]
[367195436,1750698632155,-150.0,0.00022291,2]
[367195437,1750698632165,-150.0,0.00022325,2]
[367195438,1750698632174,-150.0,0.00022375,2]
[367195439,1750698632184,-150.0,0.00022494,2]
[367195440,1750698632194,-150.0,0.00022718,2]
[367195441,1750698632203,-280.72923,0.0002277,2]
[367195442,1750698632214,-150.0,0.00022797,2]
[367195443,1750698632224,-150.0,0.00022815,2]
[367195444,1750698632234,-2045.16131156,0.00022889,2]
[367195445,1750698632245,-285.32504682,0.00022892,2]
[367195447,1750698632257,-20818.85430249,0.00022894,2]
[367195449,1750698632267,-666.82455655,0.00022894,2]
[367195451,1750698632276,-2045.16131156,0.00022904,2]
[367195453,1750698632286,-2045.16131156,0.00022918,2]
[367195455,1750698632295,-2045.16131156,0.00022933,2]
[367195456,1750698632304,-2045.16131156,0.00022948,2]
[367195457,1750698632320,-176.02115068,0.00022963,2]
[367195459,1750698632332,-1869.14016088,0.00022963,2]
[367195460,1750698632341,-502.01101058,0.00022973,2]
[367195471,1750698632437,-198.40886109,0.00022973,2]
[367195483,1750698632543,-301.59113891,0.00022973,2]
[367195485,1750698632553,-500.0,0.00022973,2]
[367195487,1750698632566,-500.0,0.00022973,2]
[367195488,1750698632575,-500.0,0.00022973,2]
[367195490,1750698632585,-500.0,0.00022973,2]
[367195492,1750698632594,-500.0,0.00022973,2]
[367195494,1750698632604,-514.08355955,0.00022973,2]
[367195496,1750698632613,-500.0,0.00022973,2]
[367195498,1750698632623,-150.0,0.00022973,2]
[367195500,1750698632632,-235.2850998,0.00022977,2]
[367195518,1750698638123,-203.0,0.00022603,2]
[367195519,1750698638133,-1809.87621176,0.00022977,2]
[367195520,1750698638142,-168.14218651,0.00022984,2]
[367195521,1750698638152,-151.18,0.00022984,2]
[367195522,1750698638162,-151.18,0.00022984,2]
[367195523,1750698638171,-20818.85430247,0.00022985,2]
[367195524,1750698638180,-591.94513444,0.00022988,2]
[367195525,1750698638190,-728.95,0.00022988,2]
[367195527,1750698638200,-490.0,0.00022988,2]
[367195528,1750698638209,-1326.54,0.00022988,2]
[367195529,1750698638219,-150.0,0.00022988,2]
[367195530,1750698638228,-150.0,0.00022988,2]
[367195531,1750698638238,-558.39,0.00022988,2]
[367195532,1750698638248,-1102.83,0.00022988,2]
[367195533,1750698638257,-605.35,0.00022988,2]
[367195534,1750698638267,-370.44899747,0.00022988,2]
[367195535,1750698638277,-500.0,0.00022988,2]
[367195536,1750698638286,-500.0,0.00022988,2]
[367195537,1750698638296,-500.0,0.00022988,2]
[367195538,1750698638306,-500.0,0.00022988,2]
[367195539,1750698638321,-501.80071831,0.00022988,2]
[367195540,1750698638331,-500.0,0.00022988,2]
[367195541,1750698638341,-500.0,0.00022988,2]
[367195542,1750698638351,-500.0,0.00022988,2]
[367195543,1750698638361,-500.0,0.00022988,2]
[367195544,1750698638371,-500.0,0.00022988,2]
[367195545,1750698638380,-500.0,0.00022988,2]
[367195546,1750698638391,-500.0,0.00022988,2]
[367195547,1750698638400,-500.0,0.00022988,2]
[367195548,1750698638409,-500.0,0.00022988,2]
[367195549,1750698638418,-500.0,0.00022988,2]
[367195551,1750698638428,-500.0,0.00022988,2]
[367195553,1750698638438,-500.0,0.00022988,2]
[367195556,1750698638447,-500.0,0.00022988,2]
[367195558,1750698638458,-500.0,0.00022988,2]
[367195559,1750698638467,-500.0,0.00022988,2]
[367195561,1750698638477,-500.0,0.00022988,2]
[367195564,1750698638487,-500.0,0.00022988,2]
[367195565,1750698638496,-500.0,0.00022988,2]
[367195568,1750698638505,-500.0,0.00022988,2]
[367195569,1750698638515,-500.0,0.00022988,2]
[367195571,1750698638525,-500.0,0.00022988,2]
[367195573,1750698638534,-500.0,0.00022988,2]
[367195576,1750698638544,-273.03713035,0.00022988,2]
[367195577,1750698638555,-500.0,0.00022988,2]
[367195579,1750698638569,-500.0,0.00022988,2]
[367195581,1750698638578,-500.0,0.00022988,2]
[367195583,1750698638596,-500.0,0.00022988,2]
[367195585,1750698638606,-500.0,0.00022988,2]
[367195587,1750698638615,-48805.917629,0.00022989,2]
[367195589,1750698638624,-1830.1914944,0.00022989,2]
[367195591,1750698638634,-303072.0448157,0.00022989,2]
[367195593,1750698638643,-300.0,0.00022989,2]
[367195595,1750698638652,-7722.9662213,0.00022989,2]
[367195597,1750698638661,-21749.7287695,0.00022989,2]
[367195599,1750698638670,-151.0,0.00022992,2]
[367195601,1750698638679,-668.65185757,0.00022992,2]
[367195603,1750698638688,-207.4,0.00022992,2]
[367195605,1750698638698,-490.0,0.00022992,2]
[367195607,1750698638707,-490.0,0.00022992,2]